bitfinex-derivatives/quotes_ETHF0:USTF0_20241102
["timestamp","ask_amount","ask_price","bid_price","bid_amount"]
[1730575765035,2.62906327,2488.9,2488.8,1.26367667]
[1730575765247,2.62906327,2488.9,2488.8,5.28127667]
[1730575766550,5.02442868,2489.1,2489.0,0.2813]
[1730575767240,4.60292868,2489.2,2488.8,2.30305928]
[1730575767446,4.60292868,2489.2,2489.1,0.28129]
[1730575767844,3.1565694,2489.2,2489.1,0.28129]
[1730575768447,4.4949694,2489.3,2488.8,2.30305928]
[1730575768647,2.63012433,2489.0,2488.9,1.94687612]
[1730575769654,3.1565694,2489.2,2488.9,1.66556612]
[1730575769951,3.1565694,2489.2,2489.1,0.28129]
[1730575771151,6.22259868,2489.3,2488.8,3.00635928]
[1730575771453,6.22259868,2489.3,2489.2,0.28128]
[1730575774749,5.94132868,2489.3,2489.2,0.28128]
[1730575775551,5.03882868,2489.3,2489.2,0.28128]
[1730575775851,3.5924694,2489.3,2489.2,0.28128]
[1730575776345,4.60292868,2489.4,2489.3,0.28127]
[1730575778156,4.88418868,2489.4,2489.3,0.28127]
[1730575778351,4.60292868,2489.4,2489.3,0.28127]
[1730575779147,1.44635928,2489.4,2489.3,0.28127]
[1730575791563,4.07384122,2489.4,2489.3,0.28127]
[1730575792764,4.07374605,2489.4,2489.3,0.28127]
[1730575802470,4.07265125,2489.4,2489.3,0.28127]
[1730575802967,8.67095928,2489.4,2488.8,1.309]
[1730575803173,0.28129,2489.2,2489.1,0.28129]
[1730575803578,6.35935037,2489.4,2488.8,2.01231]
[1730575803775,2.62636779,2489.2,2488.9,0.59146679]
[1730575803968,2.62636779,2489.2,2489.1,0.28129]
[1730575806474,2.62636779,2489.2,2489.1,0.87308985]
[1730575807471,5.30905965,2489.5,2489.3,0.28127]
[1730575807472,3.15155037,2489.4,2489.3,0.28127]
[1730575807677,3.43281037,2489.4,2489.3,0.28127]
[1730575809484,3.15155037,2489.4,2489.1,0.4295]
[1730575809773,3.15155037,2489.4,2489.1,0.28128]
[1730575809774,1.72763928,2489.2,2489.1,0.28128]
[1730575809971,1.72763928,2489.2,2489.1,0.87366605]
[1730575809972,4.87918965,2489.2,2489.1,0.87366605]
[1730575810171,5.04270965,2489.2,2488.9,0.4537]
[1730575810471,0.2813,2489.1,2489.0,0.8737347]
[1730575810672,0.28129,2489.1,2489.0,0.8737347]
[1730575810888,5.04270965,2489.2,2489.1,0.28129]
[1730575810889,5.32399965,2489.2,2489.1,0.28129]
[1730575811374,5.32399965,2489.2,2489.1,0.87372877]
[1730575812964,5.32399965,2489.2,2489.1,0.87375782]
[1730575815171,5.04270965,2489.2,2489.1,0.87375782]
[1730575815665,5.32398965,2489.2,2489.1,0.87375782]
[1730575816273,5.32398965,2489.2,2489.1,0.87379082]
[1730575819774,5.32398965,2489.2,2489.1,0.87376164]
[1730575824486,5.04270965,2489.2,2489.1,0.28129]
[1730575824674,3.15155037,2489.3,2489.2,0.28128]
[1730575824871,3.15155037,2489.4,2489.3,0.28127]
[1730575825274,3.15155037,2489.4,2489.3,0.70197]
[1730575825875,3.15155037,2489.4,2489.3,1.29434537]
[1730575826383,3.15155037,2489.4,2489.3,0.70197]
[1730575826581,3.43281037,2489.4,2489.3,0.70197]
[1730575827578,3.15155037,2489.4,2489.3,0.70197]
[1730575828485,3.15155037,2489.4,2489.3,1.29436497]
[1730575828879,3.15155037,2489.5,2489.4,0.28126]
[1730575830185,3.15155037,2489.5,2489.4,0.8736436]
[1730575830387,3.58295037,2489.6,2489.5,0.28125]
[1730575830687,3.15155037,2489.6,2489.5,0.87359793]
[1730575831786,7.22485037,2489.7,2489.6,0.28123]
[1730575832085,6.35935037,2489.7,2489.6,1.73982245]
[1730575832479,3.2078,2489.7,2489.6,1.73982245]
[1730575832779,3.15155037,2489.8,2489.7,0.28122]
[1730575833175,3.15155037,2489.8,2489.7,0.74372]
[1730575835388,3.57745037,2489.9,2489.7,0.4625]
[1730575835587,3.57745037,2489.9,2489.8,0.28121]
[1730575837189,3.85865037,2489.9,2489.8,0.28121]
[1730575837386,3.86246322,2489.9,2489.8,0.28121]
[1730575839095,0.28123,2489.7,2489.6,0.28123]
[1730575841592,3.15536322,2489.7,2489.6,0.28123]
[1730575841793,3.43658322,2489.7,2489.6,0.28123]
[1730575842500,0.28122,2489.7,2489.6,0.28123]
[1730575842701,3.43658322,2489.7,2489.6,0.28123]
[1730575844593,3.15536322,2489.7,2489.6,0.28123]
[1730575845402,3.43658322,2489.7,2489.6,0.28123]
[1730575845596,0.28122,2489.7,2489.6,0.28123]
[1730575846006,4.6017225,2489.8,2489.4,3.6649]
[1730575846200,3.43658322,2489.8,2489.7,0.28122]
[1730575849506,0.28124,2489.6,2489.5,0.28124]
[1730575849800,0.28124,2489.6,2489.3,0.28126]
[1730575849801,0.28127,2489.4,2489.3,0.28126]
[1730575850001,0.28127,2489.4,2489.0,6.09126]
[1730575850002,1.44635928,2489.4,2489.0,4.563]
[1730575850211,0.70147,2489.3,2489.2,0.28127]
[1730575852203,0.4202,2489.3,2489.2,0.28127]
[1730575855705,0.70147,2489.3,2489.2,0.28127]
[1730575857203,0.4202,2489.3,2489.2,0.28127]
[1730575858206,0.8522,2489.3,2489.2,0.28127]
[1730575859804,1.13347,2489.3,2489.2,0.28127]
[1730575863406,0.8522,2489.3,2489.2,0.28127]
[1730575863606,1.2821,2489.3,2489.2,0.28127]
[1730575864015,1.56337,2489.3,2489.2,0.28127]
[1730575864806,1.2821,2489.3,2489.2,0.28127]
[1730575865001,1.56337,2489.3,2489.2,0.28127]
[1730575867216,1.2821,2489.3,2489.2,0.28127]
[1730575869110,1.56337,2489.3,2489.2,0.28127]
[1730575869309,1.2821,2489.3,2489.1,0.4381]
[1730575869516,0.28128,2489.2,2489.1,0.71938]
[1730575869815,1.56337,2489.3,2489.2,0.28128]
[1730575875621,1.2821,2489.3,2489.2,0.28128]
[1730575877325,1.56337,2489.3,2489.2,0.28128]
[1730575878029,6.36263848,2489.4,2489.3,0.28127]
[1730575878230,4.20645131,2489.7,2489.3,10.77515378]
[1730575878429,4.74149153,2489.9,2489.8,0.28121]
[1730575878625,4.74149153,2489.9,2489.8,6.16189965]
[1730575878926,3.2078,2490.2,2489.8,5.88067068]
[1730575879111,3.2078,2490.2,2490.1,0.28118]
[1730575879321,0.4561,2490.4,2490.3,0.28116]
[1730575891131,0.28117,2490.2,2490.0,0.28118]
[1730575891334,0.71716,2490.3,2490.1,0.28117]
[1730575891636,0.28117,2490.2,2490.1,0.28117]
[1730575891838,5.46235928,2490.2,2489.9,0.28119]
[1730575892032,0.28119,2490.0,2489.9,0.28119]
[1730575892237,1.44635928,2490.2,2489.6,3.2078]
[1730575892238,0.28118,2490.1,2489.6,3.2078]
[1730575892540,0.28118,2490.1,2490.0,0.28119]
[1730575892740,0.73489,2490.0,2489.9,0.28119]
[1730575893043,0.4537,2490.0,2489.9,0.28119]
[1730575895767,0.73489,2490.0,2489.9,0.28119]
[1730575896336,0.4537,2490.0,2489.9,0.28119]
[1730575896537,4.4697,2490.0,2489.9,0.28119]
[1730575896732,0.28121,2489.9,2489.5,1.44635928]
[1730575896938,0.28121,2489.9,2489.8,0.28121]
[1730575897338,4.29721,2489.9,2489.8,0.28121]
[1730575898538,5.74356928,2489.9,2489.8,0.28121]
[1730575902342,4.016,2489.9,2489.8,0.28121]
[1730575903644,4.457,2489.9,2489.8,0.28121]
[1730575905248,5.1597,2489.9,2489.8,0.28121]
[1730575905446,4.8785,2489.9,2489.8,0.28121]
[1730575906845,8.3675,2489.9,2489.8,0.28121]
[1730575907447,8.3675,2489.9,2489.5,1.44635928]
[1730575907448,8.0863,2489.9,2489.5,1.44635928]
[1730575907650,0.28122,2489.8,2489.3,1.44635928]
[1730575908153,0.28122,2489.8,2489.7,0.28122]
[1730575908652,4.29802,2489.8,2489.7,0.28122]
[1730575909349,3.48901,2489.9,2489.8,0.28121]
[1730575909651,0.4481,2489.9,2489.8,0.28121]
[1730575912555,0.4481,2489.9,2489.5,1.72715928]
[1730575912754,0.72931,2489.9,2489.7,0.28121]
[1730575912943,0.72931,2489.9,2489.5,1.72715928]
[1730575912944,0.72931,2489.9,2489.5,0.2808]
[1730575913142,0.72931,2489.9,2489.8,0.28121]
[1730575914351,0.4481,2489.9,2489.8,0.28121]
[1730575920357,3.96965077,2490.4,2489.8,4.016]
[1730575920358,6.56596688,2490.4,2489.8,4.016]
[1730575920548,6.56596688,2490.4,2490.2,0.28117]
[1730575920549,1.56386,2490.3,2490.2,0.28117]
[1730575921349,1.2827,2490.3,2490.2,0.28117]
[1730575923858,1.56386,2490.3,2489.9,1.72715928]
[1730575924059,1.44635928,2490.1,2489.8,3.2078]
[1730575924257,1.44635928,2490.1,2490.0,0.28119]
[1730575924452,4.93533928,2490.1,2489.7,0.2807]
[1730575925053,4.93533928,2490.1,2489.9,0.28119]
[1730575925347,4.93533928,2490.1,2489.7,0.2807]
[1730575925552,1.72753928,2490.1,2490.0,0.28119]
[1730575925852,0.28119,2490.0,2489.9,0.28119]
[1730575926761,0.28119,2490.0,2489.7,0.2807]
[1730575926762,4.93534928,2490.1,2489.8,0.28121]
[1730575927061,0.4386,2489.9,2489.8,0.28121]
[1730575927562,1.88495928,2489.9,2489.5,3.2078]
[1730575927859,0.448,2489.8,2489.7,0.28122]
[1730575932957,4.11804255,2489.8,2489.7,0.28122]
[1730575937463,0.448,2489.8,2489.7,0.28122]
[1730575940865,4.63377744,2489.9,2489.8,0.28121]
[1730575943872,5.08767744,2489.9,2489.8,0.28121]
[1730575947271,0.8925,2489.9,2489.8,0.28121]
[1730575947477,4.57952717,2489.9,2489.8,0.28121]
[1730575950876,0.8925,2489.9,2489.8,0.28121]
[1730575953477,4.57994612,2489.9,2489.8,0.28121]
[1730575955576,0.8925,2489.9,2489.8,0.28121]
[1730575960881,0.8925,2489.9,2489.8,0.87348601]
[1730575961080,0.8925,2489.9,2489.8,0.99909292]
[1730575961288,0.8925,2489.9,2489.8,0.9990925]
[1730575961513,0.8925,2489.9,2489.8,0.28121]
[1730575961781,0.8925,2489.9,2489.8,0.99918173]
[1730575962488,4.57994612,2489.9,2489.8,0.99918173]
[1730575965182,4.57994612,2489.9,2489.8,0.40681634]
[1730575965382,4.57994612,2489.9,2489.8,0.99921305]
[1730575965589,4.57994612,2489.9,2489.8,0.99921207]
[1730575967690,0.8925,2489.9,2489.8,0.99921207]
[1730575967893,4.57994612,2489.9,2489.8,0.99921207]
[1730575968692,4.57994612,2489.9,2489.8,0.40681536]
[1730575968887,4.57994612,2489.9,2489.8,0.9993165]
[1730575969191,4.57994612,2489.9,2489.8,0.28121]
[1730575970799,0.8925,2489.9,2489.8,0.28121]
[1730575976100,0.8925,2489.9,2489.8,0.9995377]
[1730575976391,0.8925,2489.9,2489.8,0.99953666]
[1730575977094,4.13984612,2490.0,2489.8,4.73432666]
[1730575977296,0.4524,2490.0,2489.9,2.44588594]
[1730575977684,0.4524,2490.0,2489.9,6.66284464]
[1730575977886,0.4524,2490.0,2489.9,7.61111604]
[1730575979397,0.4524,2490.0,2489.9,7.61093459]
[1730575980799,6.89524612,2490.2,2489.9,7.32973459]
[1730575980986,6.89524612,2490.2,2490.1,1.72753928]
[1730575980987,3.68744612,2490.2,2490.1,1.72753928]
[1730575981189,5.03554612,2490.4,2490.3,0.28116]
[1730575981392,1.3481,2490.4,2490.3,0.28116]
[1730575986394,5.03291663,2490.4,2490.3,0.28116]
[1730575987402,0.8933,2490.4,2490.3,0.28116]
[1730575989997,0.8933,2490.4,2490.3,4.29636]
[1730575990192,0.8933,2490.4,2490.3,5.74271928]
[1730575995906,0.8933,2490.4,2490.3,4.29636]
[1730575996411,0.8933,2490.4,2490.3,0.28116]
[1730575998409,0.8933,2490.4,2490.3,4.29636]
[1730575998707,0.8933,2490.4,2490.3,0.28116]
[1730575998908,0.8933,2490.4,2490.3,4.29636]
[1730575999100,0.8933,2490.4,2490.3,0.28116]
[1730576000607,0.8933,2490.4,2490.3,4.29636]
[1730576002610,0.8933,2490.4,2490.3,0.28116]
[1730576006518,0.8933,2490.4,2490.3,4.29636]
[1730576006704,0.8933,2490.4,2490.3,0.28116]
[1730576007012,0.8933,2490.4,2490.3,4.29636]
[1730576008208,0.8933,2490.4,2490.3,0.28116]
[1730576014315,0.8933,2490.4,2490.3,0.87244433]
[1730576014510,0.8933,2490.4,2490.3,0.28116]
[1730576014713,0.4225,2490.5,2490.3,5.46155928]
[1730576015014,0.4225,2490.5,2490.4,4.42190752]
[1730576015222,0.4225,2490.5,2490.4,4.29634]
[1730576016019,0.4225,2490.5,2490.4,4.88759131]
[1730576016216,0.4225,2490.5,2490.4,5.01316163]
[1730576021916,0.4225,2490.5,2490.4,4.88759131]
[1730576022912,0.4225,2490.5,2490.4,4.29634]
[1730576023325,0.9022,2490.6,2490.4,4.0152]
[1730576023511,0.9022,2490.6,2490.5,1.72748928]
[1730576024217,0.9022,2490.6,2490.5,5.74268928]
[1730576024418,0.9022,2490.6,2490.5,6.45997775]
[1730576024615,0.4305,2490.8,2490.7,0.28111]
[1730576024809,0.8841,2490.8,2490.7,1.72746928]
[1730576025022,0.8841,2490.8,2490.7,1.85302689]
[1730576025218,0.8841,2490.8,2490.7,2.44466379]
[1730576027318,0.8841,2490.8,2490.7,2.44437483]
[1730576030836,0.8841,2490.8,2490.7,2.31882102]
[1730576031027,0.8841,2490.8,2490.7,2.31861976]
[1730576031226,0.8841,2490.8,2490.7,1.72746928]
[1730576031432,0.8841,2490.8,2490.7,2.44410825]
[1730576032319,0.8841,2490.8,2490.7,2.44409232]
[1730576032728,0.8841,2490.8,2490.7,0.28111]
[1730576036640,0.8841,2490.8,2490.6,0.28112]
[1730576036641,0.28112,2490.7,2490.6,0.28112]
[1730576037624,7.53075972,2490.8,2490.7,0.28111]
[1730576037827,7.53075972,2490.8,2490.3,2.14922928]
[1730576037828,8.38821,2490.8,2490.3,2.14922928]
[1730576038027,3.1565025,2490.7,2490.3,2.14922928]
[1730576038235,3.1565025,2490.7,2490.6,0.28112]
[1730576038437,7.2484025,2490.8,2490.7,0.28111]
[1730576038936,11.2636025,2490.8,2490.7,0.28111]
[1730576041437,8.0558025,2490.8,2490.7,0.28111]
[1730576041634,11.2636025,2490.8,2490.7,0.28111]
[1730576042125,11.5447025,2490.8,2490.7,0.28111]
[1730576042434,11.54474748,2490.8,2490.7,0.28111]
[1730576042827,8.3882,2490.8,2490.7,0.28111]
[1730576043339,11.5448499,2490.8,2490.7,0.28111]
[1730576043529,8.3882,2490.8,2490.7,0.28111]
[1730576043940,9.55345928,2490.8,2490.2,4.65415928]
[1730576044237,3.15679547,2490.6,2490.5,0.28112]
[1730576044634,7.17199547,2490.6,2490.5,0.28112]
[1730576045040,4.0152,2490.6,2490.5,0.28112]
[1730576045233,3.15679547,2490.7,2490.6,0.28112]
[1730576045432,3.43790547,2490.7,2490.6,0.28112]
[1730576045741,7.17199547,2490.7,2490.6,0.28112]
[1730576046729,4.29631,2490.7,2490.6,0.28112]
[1730576048032,4.0152,2490.7,2490.6,0.28112]
[1730576048239,7.52980547,2490.8,2490.7,0.28111]
[1730576048740,11.54500547,2490.8,2490.7,0.28111]
[1730576049627,8.38821,2490.8,2490.7,0.28111]
[1730576049832,11.54564955,2490.8,2490.7,0.28111]
[1730576050238,8.33784955,2490.8,2490.7,0.28111]
[1730576050434,5.18041,2490.8,2490.7,0.28111]
[1730576050642,8.33796753,2490.8,2490.7,0.28111]
[1730576050937,8.33799543,2490.8,2490.7,0.28111]
[1730576051236,0.28112,2490.7,2490.6,0.28112]
[1730576051444,3.43873943,2490.7,2490.6,0.28112]
[1730576051659,7.45393943,2490.7,2490.6,0.28112]
[1730576052531,0.28113,2490.6,2490.5,0.28113]
[1730576052742,0.28113,2490.6,2490.2,2.14927928]
[1730576052934,0.4578,2490.5,2490.4,0.28114]
[1730576054229,0.4578,2490.5,2490.4,0.40671014]
[1730576054444,0.4578,2490.5,2490.4,0.99392276]
[1730576054845,0.4578,2490.5,2490.4,0.28114]
[1730576055033,0.4578,2490.5,2490.4,0.99386473]
[1730576058538,3.15761943,2490.7,2490.6,0.28112]
[1730576060853,4.49361943,2490.8,2490.7,0.28111]
[1730576061248,1.336,2490.8,2490.7,0.28111]
[1730576061443,4.49450294,2490.8,2490.7,0.28111]
[1730576061747,1.336,2490.8,2490.7,0.28111]
[1730576061945,4.49454636,2490.8,2490.7,0.28111]
[1730576062145,1.336,2490.8,2490.7,0.28111]
[1730576063546,4.494527,2490.8,2490.7,0.28111]
[1730576065351,1.336,2490.8,2490.7,0.28111]
[1730576065942,4.494527,2490.8,2490.7,0.28111]
[1730576066147,1.336,2490.8,2490.7,0.28111]
[1730576067247,0.8778,2490.8,2490.7,0.28111]
[1730576068251,0.4242,2490.8,2490.7,0.28111]
[1730576068552,3.158527,2490.9,2490.8,0.2811]
[1730576068847,4.054527,2491.0,2490.9,0.28109]
[1730576075060,4.58081663,2491.0,2490.9,0.28109]
[1730576077362,4.58136053,2491.0,2490.9,0.28109]
[1730576078058,0.896,2491.0,2490.9,0.28109]
[1730576078259,4.58157443,2491.0,2490.9,0.28109]
[1730576078455,4.58173595,2491.0,2490.9,0.28109]
[1730576078858,0.896,2491.0,2490.9,0.28109]
[1730576079657,4.5816351,2491.0,2490.9,0.28109]
[1730576079858,0.896,2491.0,2490.9,0.28109]
[1730576080354,4.5815985,2491.0,2490.9,0.28109]
[1730576080862,4.58150474,2491.0,2490.9,0.28109]
[1730576082658,1.17708,2491.0,2490.9,0.28109]
[1730576083861,4.8624267,2491.0,2490.9,0.28109]
[1730576084255,1.17708,2491.0,2490.9,0.28109]
[1730576087566,4.8624267,2491.0,2490.9,0.28109]
[1730576087971,1.17708,2491.0,2490.9,0.28109]
[1730576090167,5.39123373,2491.0,2490.9,0.28109]
[1730576092573,5.11015373,2491.0,2490.9,0.28109]
[1730576093969,5.39123373,2491.0,2490.9,0.28109]
[1730576094170,0.2811,2490.9,2490.8,0.28109]
[1730576094373,4.49525373,2490.9,2490.8,0.28109]
[1730576095669,0.2811,2490.9,2490.8,0.28109]
[1730576096379,5.39124373,2491.0,2490.9,0.28109]
[1730576096879,9.40564373,2491.0,2490.9,0.28109]
[1730576098075,4.86332435,2491.0,2490.9,0.28109]
[1730576105173,5.39124373,2491.0,2490.9,0.28109]
[1730576105573,1.17709,2491.0,2490.9,0.28109]
[1730576105775,5.11088671,2491.0,2490.9,0.28109]
[1730576108381,5.56718671,2491.0,2490.9,0.28109]
[1730576109383,5.56718671,2491.0,2490.9,0.99457371]
[1730576109588,4.21488671,2491.0,2490.9,0.99457371]
[1730576109792,4.21488671,2491.0,2490.9,1.45797371]
[1730576109979,7.42268671,2491.1,2491.0,0.28108]
[1730576110179,7.42268671,2491.1,2491.0,0.99455012]
[1730576110781,4.21488671,2491.1,2491.0,0.99455012]
[1730576111379,4.21488671,2491.1,2491.0,0.28108]
[1730576111581,7.42268671,2491.1,2491.0,0.28108]
[1730576113084,4.21488671,2491.1,2491.0,0.28108]
[1730576113285,6.89684302,2491.1,2491.0,0.28108]
[1730576113781,3.68904302,2491.1,2491.0,0.28108]
[1730576113978,6.89684302,2491.1,2491.0,0.28108]
[1730576114581,7.17791302,2491.1,2491.0,0.28108]
[1730576114787,6.89675817,2491.1,2491.0,0.28108]
[1730576114982,3.2078,2491.1,2491.0,0.28108]
[1730576115891,6.89668804,2491.1,2491.0,0.28108]
[1730576116583,3.68888804,2491.1,2491.0,0.28108]
[1730576116787,6.89668804,2491.1,2491.0,0.28108]
[1730576119482,3.68888804,2491.1,2491.0,0.28108]
[1730576119997,6.89668804,2491.1,2491.0,0.28108]
[1730576120185,3.68888804,2491.1,2491.0,0.28108]
[1730576120585,6.89668804,2491.1,2491.0,0.28108]
[1730576122895,3.68888804,2491.1,2491.0,0.28108]
[1730576123095,6.89668804,2491.1,2491.0,0.28108]
[1730576124696,3.68888804,2491.1,2491.0,0.28108]
[1730576124899,6.89668804,2491.1,2491.0,0.28108]
[1730576126294,3.68888804,2491.1,2491.0,0.28108]
[1730576127387,1.17886,2491.2,2491.1,0.28107]
[1730576127586,5.91978294,2491.2,2491.1,0.28107]
[1730576129503,5.63872294,2491.2,2491.1,0.28107]
[1730576130205,5.91977294,2491.2,2491.1,0.28107]
[1730576130392,5.63872294,2491.2,2491.1,0.28107]
[1730576130885,5.91977294,2491.2,2491.1,0.28107]
[1730576131090,5.19722294,2491.2,2491.1,0.28107]
[1730576131291,0.4563,2491.2,2491.1,0.28107]
[1730576131499,0.4563,2491.2,2491.1,0.69977]
[1730576132401,4.67079102,2491.2,2491.1,0.69977]
[1730576135606,4.67079102,2491.2,2491.1,0.28107]
[1730576135803,0.4563,2491.2,2491.1,0.28107]
[1730576137797,1.90265928,2491.2,2490.7,4.65415928]
[1730576137995,0.2811,2490.9,2490.8,0.2811]
[1730576138197,0.2811,2490.9,2490.6,0.2]
[1730576138198,0.28111,2490.8,2490.7,0.28111]
[1730576138404,4.7151274,2490.8,2490.7,0.28111]
[1730576139102,1.55471,2490.8,2490.7,0.28111]
[1730576139499,4.71505831,2490.8,2490.7,0.28111]
[1730576139712,4.71503336,2490.8,2490.7,0.28111]
[1730576140996,1.55471,2490.8,2490.7,0.28111]
[1730576141412,4.71494215,2490.8,2490.7,0.28111]
[1730576143807,5.88019143,2490.8,2490.6,0.2]
[1730576144008,8.09550143,2490.7,2490.6,0.2]
[1730576144201,8.6223366,2490.7,2490.6,0.2]
[1730576144902,8.6223366,2490.7,2490.6,0.48112]
[1730576145411,5.4145366,2490.7,2490.6,0.48112]
[1730576146199,8.6223366,2490.7,2490.6,0.48112]
[1730576147610,4.93526928,2490.7,2490.6,0.48112]
[1730576147806,5.4145366,2490.7,2490.6,0.2]
[1730576148217,9.4297366,2490.7,2490.6,0.2]
[1730576150521,5.74266928,2490.7,2490.6,0.2]
[1730576151218,8.95046928,2490.7,2490.6,0.2]
[1730576153218,5.74266928,2490.7,2490.6,0.2]
[1730576154121,8.95046928,2490.7,2490.6,0.2]
[1730576154421,12.63130667,2490.7,2490.6,0.2]
[1730576155115,9.42350667,2490.7,2490.6,0.2]
[1730576155623,12.63130667,2490.7,2490.6,0.2]
[1730576156120,9.42350667,2490.7,2490.6,0.2]
[1730576157112,12.63130667,2490.7,2490.6,0.2]
[1730576157514,5.74266928,2490.7,2490.6,0.2]
[1730576157923,8.95046928,2490.7,2490.6,0.2]
[1730576159229,12.10415251,2490.7,2490.6,0.2]
[1730576159731,8.08895251,2490.7,2490.6,0.2]
[1730576160553,12.10415251,2490.7,2490.6,0.2]
[1730576161131,8.08895251,2490.7,2490.6,0.2]
[1730576163631,4.88115251,2490.7,2490.6,0.2]
[1730576165636,5.40830667,2490.7,2490.6,0.2]
[1730576166135,0.28115,2490.4,2490.3,0.28115]
[1730576166728,1.57805,2490.4,2490.3,0.28115]
[1730576166925,1.57805,2490.4,2490.1,0.4236]
[1730576166926,1.2969,2490.4,2490.1,0.4236]
[1730576167121,0.28118,2490.1,2490.0,3.2078]
[1730576167327,1.72753928,2490.1,2490.0,0.28119]
[1730576167527,2.17673928,2490.1,2490.0,0.28119]
[1730576169326,0.4492,2490.1,2490.0,0.28119]
[1730576170740,0.2812,2489.9,2489.8,0.70481]
[1730576171039,1.44635928,2489.9,2489.7,0.28122]
[1730576171243,0.4257,2489.8,2489.7,0.28122]
[1730576171431,0.4257,2489.8,2489.7,0.71182]
[1730576171633,1.72756928,2489.9,2489.8,0.28121]
[1730576171634,0.28121,2489.9,2489.8,0.28121]
[1730576171832,5.89897285,2490.0,2489.8,0.28121]
[1730576172135,5.89897285,2490.0,2489.7,0.4306]
[1730576172136,2.74565928,2490.0,2489.7,0.4306]
[1730576172340,3.15331357,2490.1,2490.0,0.28119]
[1730576172732,4.65479102,2490.4,2490.0,4.016]
[1730576172733,1.72751928,2490.3,2490.0,4.016]
[1730576173038,1.72751928,2490.3,2490.2,0.28117]
[1730576173039,1.44635928,2490.3,2490.2,0.28117]
[1730576173734,1.72751928,2490.3,2490.2,0.28117]
[1730576177342,1.72751928,2490.3,2490.1,0.71177]
[1730576179835,1.72751928,2490.3,2490.1,0.4306]
[1730576180029,1.72751928,2490.3,2490.2,0.28117]
[1730576181242,1.44635928,2490.3,2490.2,0.28117]
[1730576181640,4.59967285,2490.3,2490.2,0.28117]
[1730576181939,6.36111357,2490.4,2490.3,0.28116]
[1730576182150,4.88081285,2490.5,2490.2,0.8675]
[1730576182340,4.8811491,2490.5,2490.4,0.28114]
[1730576182644,1.72749928,2490.5,2490.3,0.28115]
[1730576182945,3.15437839,2490.4,2490.3,0.28115]
[1730576186046,4.88187767,2490.4,2490.3,0.28115]
[1730576186542,1.44635928,2490.4,2490.3,0.28115]
[1730576186744,4.60290378,2490.4,2490.3,0.28115]
[1730576187546,4.60327803,2490.4,2490.3,0.28115]
[1730576191448,4.60327803,2490.4,2490.2,0.28116]
[1730576191647,4.31317875,2490.3,2490.2,0.28116]
[1730576193645,4.31317875,2490.3,2490.1,0.4306]
[1730576193853,0.4253,2490.2,2490.1,0.71177]
[1730576195943,3.58221875,2490.2,2490.1,0.71177]
[1730576196943,3.58221875,2490.2,2490.1,0.28117]
[1730576197841,5.30974803,2490.2,2490.1,0.28117]
[1730576198049,5.55052512,2490.2,2489.7,3.2078]
[1730576198255,1.72755928,2490.0,2489.9,0.2812]
[1730576198553,4.88672979,2490.0,2489.9,0.2812]
[1730576198754,5.34192979,2490.0,2489.9,0.2812]
[1730576200151,0.28121,2489.9,2489.8,0.28121]
[1730576200351,1.90725928,2489.9,2489.8,0.28121]
[1730576200658,2.18845928,2489.9,2489.8,0.28121]
[1730576200845,5.86732512,2489.9,2489.8,0.28121]
[1730576201046,2.18845928,2489.9,2489.8,0.28121]
[1730576201752,2.18845928,2489.9,2489.7,3.2078]
[1730576201753,0.28121,2489.8,2489.7,3.48902]
[1730576202055,3.8835161,2489.8,2489.7,3.48902]
[1730576202249,3.8835161,2489.8,2489.7,0.28122]
[1730576202449,3.6023061,2489.8,2489.7,0.28122]
[1730576203057,0.4433,2489.8,2489.7,0.28122]
[1730576223870,1.44635928,2489.9,2489.8,0.28121]
[1730576226677,2.32665928,2490.2,2489.8,4.016]
[1730576226871,2.77595928,2490.2,2490.1,0.28118]
[1730576238398,5.93496538,2490.2,2490.1,0.28118]
[1730576238687,2.77595928,2490.2,2490.1,0.28118]
[1730576239181,5.93496538,2490.2,2490.1,0.28118]
[1730576246490,2.77595928,2490.2,2490.1,0.28118]
[1730576246689,5.93496538,2490.2,2490.1,0.28118]
[1730576247082,2.77595928,2490.2,2490.1,0.28118]
[1730576248484,2.77595928,2490.2,2489.7,1.44635928]
[1730576248685,2.77595928,2490.2,2490.1,0.28118]
[1730576255696,5.93496538,2490.2,2490.1,0.28118]
[1730576259402,0.28119,2490.1,2490.0,0.28119]
[1730576259711,0.28119,2490.0,2489.9,0.28119]
[1730576260000,1.44635928,2490.0,2489.9,0.2812]
[1730576260196,1.44635928,2490.0,2489.9,0.40680099]
[1730576260391,1.44635928,2490.0,2489.9,0.2812]
[1730576263408,1.44635928,2490.0,2489.9,0.86903707]
[1730576263599,1.44635928,2490.0,2489.9,1.58247263]
[1730576264101,1.44635928,2490.0,2489.9,0.86903707]
[1730576264312,4.60536538,2490.0,2489.9,0.86903707]
[1730576265298,4.60536538,2490.0,2489.9,0.2812]
[1730576265507,4.60536538,2490.0,2489.9,0.40680425]
[1730576265803,4.60536538,2490.0,2489.9,0.99478461]
[1730576267111,4.60536538,2490.0,2489.9,0.99477584]
[1730576267511,7.81316538,2490.0,2489.9,0.99477584]
[1730576269713,4.60536538,2490.0,2489.9,0.99477584]
[1730576270508,4.60536538,2490.0,2489.9,0.2812]
[1730576270716,4.60536538,2490.0,2489.9,0.99504232]
[1730576272218,4.60536538,2490.0,2489.9,1.19599517]
[1730576272719,4.60536538,2490.0,2489.9,2.13735886]
[1730576272919,4.60536538,2490.0,2489.9,1.19599517]
[1730576273316,4.60536538,2490.0,2489.9,2.13736133]
[1730576273823,4.60536538,2490.0,2489.9,1.19599517]
[1730576274006,4.60536538,2490.0,2489.9,1.19610053]
[1730576274209,4.60536538,2490.0,2489.9,0.99514768]
[1730576274607,3.1590061,2490.0,2489.9,2.13745092]
[1730576274811,7.81316538,2490.1,2489.9,1.85625092]
[1730576275011,4.65415928,2490.1,2490.0,0.99513768]
[1730576275315,4.60886113,2490.1,2490.0,0.99512907]
[1730576275512,4.60886113,2490.1,2490.0,1.19607698]
[1730576275714,4.60886113,2490.1,2490.0,2.13739315]